[Event "Early-Titled-Tuesday-Blitz-November-28-2023"]
[Site "Chess.com"]
[Date "2023.11.28"]
[Round "4"]
[White "HalfIsCrayfish"]
[Black "Arvids_Andrejevs"]
[Result "1/2-1/2"]
[WhiteElo "2626"]
[BlackElo "2415"]
[TimeControl "180+1"]
[EndTime "8:39:23 PST"]
[Termination "Game drawn - insufficient material"]

1. d4 {[%clk 0:03:00.9]} 1... Nf6 {[%clk 0:02:45.8]} 2. c4 {[%clk 0:03:01.4]}
2... c5 {[%clk 0:02:44.4]} 3. d5 {[%clk 0:03:01.5]} 3... b5 {[%clk 0:02:44.3]}
4. cxb5 {[%clk 0:03:01.4]} 4... a6 {[%clk 0:02:44.1]} 5. bxa6 {[%clk 0:03:01.2]}
5... g6 {[%clk 0:02:44.4]} 6. Nc3 {[%clk 0:03:01.4]} 6... Bg7 {[%clk 0:02:44.6]}
7. Nf3 {[%clk 0:03:02]} 7... Qa5 {[%clk 0:02:29.3]} 8. g3 {[%clk 0:02:25.8]}
8... Nxd5 {[%clk 0:01:28.9]} 9. Qxd5 {[%clk 0:02:26.7]} 9... Bxc3+ {[%clk
0:01:28.3]} 10. Bd2 {[%clk 0:02:27.1]} 10... Bxd2+ {[%clk 0:01:20.4]} 11. Nxd2
{[%clk 0:02:18.9]} 11... Qxa6 {[%clk 0:01:19.1]} 12. Bg2 {[%clk 0:02:16.3]}
12... Nc6 {[%clk 0:01:08.1]} 13. O-O {[%clk 0:02:12.7]} 13... O-O {[%clk
0:01:02.3]} 14. Qxc5 {[%clk 0:01:58.8]} 14... Qxe2 {[%clk 0:00:58.2]} 15. Nf3
{[%clk 0:01:50.3]} 15... Qxb2 {[%clk 0:00:49.1]} 16. h4 {[%clk 0:01:47.2]} 16...
Qb4 {[%clk 0:00:31.8]} 17. Qc2 {[%clk 0:01:45.1]} 17... Ba6 {[%clk 0:00:29.2]}
18. Rfe1 {[%clk 0:01:44.4]} 18... Rac8 {[%clk 0:00:28.6]} 19. Qb3 {[%clk
0:01:35.9]} 19... Qxb3 {[%clk 0:00:28]} 20. axb3 {[%clk 0:01:36.8]} 20... Bd3
{[%clk 0:00:23.7]} 21. Ne5 {[%clk 0:01:35.1]} 21... Nxe5 {[%clk 0:00:23.7]} 22.
Rxe5 {[%clk 0:01:36]} 22... e6 {[%clk 0:00:21.6]} 23. Re3 {[%clk 0:01:33.9]}
23... Bc2 {[%clk 0:00:19.3]} 24. b4 {[%clk 0:01:32.9]} 24... d5 {[%clk
0:00:19.7]} 25. Ra2 {[%clk 0:01:27.5]} 25... Be4 {[%clk 0:00:17.6]} 26. Bxe4
{[%clk 0:01:26.1]} 26... dxe4 {[%clk 0:00:18.3]} 27. Rxe4 {[%clk 0:01:26.6]}
27... Rb8 {[%clk 0:00:18.6]} 28. Rb2 {[%clk 0:01:24.8]} 28... Rb7 {[%clk
0:00:19.1]} 29. Rc4 {[%clk 0:01:23.2]} 29... Rfb8 {[%clk 0:00:19.4]} 30. Kg2
{[%clk 0:01:23.4]} 30... Rb5 {[%clk 0:00:19.3]} 31. Kf3 {[%clk 0:01:23.3]} 31...
Kg7 {[%clk 0:00:19.8]} 32. Ke3 {[%clk 0:01:21.7]} 32... Kf6 {[%clk 0:00:20.4]}
33. Kd3 {[%clk 0:01:22]} 33... h6 {[%clk 0:00:20.9]} 34. Kc3 {[%clk 0:01:22.3]}
34... g5 {[%clk 0:00:21.2]} 35. hxg5+ {[%clk 0:01:22.7]} 35... hxg5 {[%clk
0:00:21.7]} 36. Rc5 {[%clk 0:01:17.6]} 36... R5b7 {[%clk 0:00:18.5]} 37. b5
{[%clk 0:01:17.5]} 37... Ke7 {[%clk 0:00:18.5]} 38. Kc4 {[%clk 0:01:17.1]} 38...
f5 {[%clk 0:00:18.1]} 39. Rc6 {[%clk 0:01:13.2]} 39... Kd7 {[%clk 0:00:16.7]}
40. Kc5 {[%clk 0:01:12.2]} 40... Rc7 {[%clk 0:00:16.8]} 41. Rxc7+ {[%clk
0:01:11]} 41... Kxc7 {[%clk 0:00:17.7]} 42. b6+ {[%clk 0:01:11.6]} 42... Kb7
{[%clk 0:00:18.2]} 43. Ra2 {[%clk 0:01:12]} 43... Rc8+ {[%clk 0:00:17.1]} 44.
Kb5 {[%clk 0:01:12.1]} 44... Rc1 {[%clk 0:00:13.4]} 45. Ra7+ {[%clk 0:01:11]}
45... Kb8 {[%clk 0:00:14]} 46. Re7 {[%clk 0:01:10.9]} 46... Re1 {[%clk
0:00:13.7]} 47. Kc6 {[%clk 0:01:03]} 47... Rc1+ {[%clk 0:00:13.6]} 48. Kd6
{[%clk 0:00:57.5]} 48... f4 {[%clk 0:00:13.7]} 49. gxf4 {[%clk 0:00:56.4]} 49...
gxf4 {[%clk 0:00:13.9]} 50. Kxe6 {[%clk 0:00:55.3]} 50... Rc2 {[%clk 0:00:14.3]}
51. Rf7 {[%clk 0:00:33.6]} 51... Rxf2 {[%clk 0:00:14.4]} 52. Ke5 {[%clk
0:00:33.1]} 52... Rb2 {[%clk 0:00:15]} 53. Rxf4 {[%clk 0:00:31.2]} 53... Rxb6
{[%clk 0:00:15.2]} 54. Rf6 {[%clk 0:00:30.4]} 54... Rxf6 {[%clk 0:00:13.8]} 55.
Kxf6 {[%clk 0:00:31.3]} 1/2-1/2

[Event "Early-Titled-Tuesday-Blitz-November-28-2023"]
[Site "Chess.com"]
[Date "2023.11.28"]
[Round "4"]
[White "BarloNadera"]
[Black "erugee"]
[Result "1-0"]
[WhiteElo "2132"]
[BlackElo "2315"]
[TimeControl "180+1"]
[EndTime "8:39:24 PST"]
[Termination "BarloNadera won on time"]

1. d4 {[%clk 0:02:48.8]} 1... d5 {[%clk 0:02:58.6]} 2. Nf3 {[%clk 0:02:47.2]}
2... e6 {[%clk 0:02:58.5]} 3. c4 {[%clk 0:02:47.4]} 3... c6 {[%clk 0:02:58]} 4.
Qc2 {[%clk 0:02:46.2]} 4... f5 {[%clk 0:02:58.3]} 5. Nc3 {[%clk 0:02:43.1]} 5...
Nf6 {[%clk 0:02:58.6]} 6. Bg5 {[%clk 0:02:42.7]} 6... Be7 {[%clk 0:02:57.5]} 7.
Bxf6 {[%clk 0:02:41.8]} 7... Bxf6 {[%clk 0:02:57]} 8. e3 {[%clk 0:02:42]} 8...
O-O {[%clk 0:02:56.1]} 9. Bd3 {[%clk 0:02:35.2]} 9... Bd7 {[%clk 0:02:56.5]} 10.
h3 {[%clk 0:02:31.4]} 10... Be8 {[%clk 0:02:55.9]} 11. g4 {[%clk 0:02:27.5]}
11... g6 {[%clk 0:02:49.1]} 12. gxf5 {[%clk 0:02:24.8]} 12... gxf5 {[%clk
0:02:46.7]} 13. O-O-O {[%clk 0:02:18.6]} 13... Kh8 {[%clk 0:02:44.5]} 14. Rdg1
{[%clk 0:02:15.8]} 14... Bh5 {[%clk 0:02:36.4]} 15. Ne5 {[%clk 0:02:12.8]} 15...
Nd7 {[%clk 0:02:33]} 16. f4 {[%clk 0:02:11]} 16... Nb6 {[%clk 0:02:24.2]} 17. c5
{[%clk 0:01:57.2]} 17... Nd7 {[%clk 0:02:22.8]} 18. Be2 {[%clk 0:01:56.5]} 18...
Be8 {[%clk 0:01:56]} 19. Rg2 {[%clk 0:01:54.6]} 19... Rc8 {[%clk 0:01:39.5]} 20.
Rhg1 {[%clk 0:01:53.1]} 20... b6 {[%clk 0:01:40]} 21. Na4 {[%clk 0:01:22.6]}
21... bxc5 {[%clk 0:01:36]} 22. Nxc5 {[%clk 0:01:21.8]} 22... Nxc5 {[%clk
0:01:33.1]} 23. Qxc5 {[%clk 0:01:21.2]} 23... Qe7 {[%clk 0:01:27.6]} 24. Qxe7
{[%clk 0:01:15.7]} 24... Bxe7 {[%clk 0:01:25.3]} 25. Rg7 {[%clk 0:01:15.1]}
25... Bf6 {[%clk 0:01:16.4]} 26. Rxa7 {[%clk 0:01:13.8]} 26... c5 {[%clk
0:01:17]} 27. dxc5 {[%clk 0:01:02.2]} 27... Rxc5+ {[%clk 0:01:14.4]} 28. Kd2
{[%clk 0:01:02.7]} 28... Bxe5 {[%clk 0:01:06.3]} 29. fxe5 {[%clk 0:01:01.4]}
29... Bg6 {[%clk 0:01:06.9]} 30. Rc1 {[%clk 0:00:46]} 30... Rfc8 {[%clk
0:01:03.9]} 31. Rxc5 {[%clk 0:00:44.7]} 31... Rxc5 {[%clk 0:01:04.1]} 32. b4
{[%clk 0:00:42.5]} 32... Rc8 {[%clk 0:01:00]} 33. b5 {[%clk 0:00:42.2]} 33... f4
{[%clk 0:00:56.2]} 34. exf4 {[%clk 0:00:41.5]} 34... Rc2+ {[%clk 0:00:56.7]} 35.
Kd1 {[%clk 0:00:41.2]} 35... Rb2 {[%clk 0:00:55.1]} 36. a4 {[%clk 0:00:39.6]}
36... d4 {[%clk 0:00:55.7]} 37. Bc4 {[%clk 0:00:36.3]} 37... d3 {[%clk
0:00:54.5]} 38. Rd7 {[%clk 0:00:29.5]} 38... Bh5+ {[%clk 0:00:38.9]} 39. Ke1
{[%clk 0:00:29.2]} 39... Rb1+ {[%clk 0:00:23.7]} 40. Kd2 {[%clk 0:00:26.8]}
40... Rb4 {[%clk 0:00:16.6]} 41. Bxd3 {[%clk 0:00:25.8]} 41... Rxa4 {[%clk
0:00:16]} 42. b6 {[%clk 0:00:25.8]} 42... Ra2+ {[%clk 0:00:12.5]} 43. Ke3 {[%clk
0:00:24.5]} 43... Rb2 {[%clk 0:00:12.2]} 44. b7 {[%clk 0:00:24.4]} 1-0

[Event "Early-Titled-Tuesday-Blitz-November-28-2023"]
[Site "Chess.com"]
[Date "2023.11.28"]
[Round "4"]
[White "Zhigalko_Sergei"]
[Black "GaiozNigalidze"]
[Result "1-0"]
[WhiteElo "2911"]
[BlackElo "2672"]
[TimeControl "180+1"]
[EndTime "8:39:25 PST"]
[Termination "Zhigalko_Sergei won on time"]

1. e4 {[%clk 0:03:00.9]} 1... c5 {[%clk 0:03:00.1]} 2. Nf3 {[%clk 0:02:59.5]}
2... Nc6 {[%clk 0:02:55.5]} 3. c3 {[%clk 0:02:59.5]} 3... d5 {[%clk 0:02:54.4]}
4. exd5 {[%clk 0:02:59.4]} 4... Qxd5 {[%clk 0:02:53.9]} 5. d4 {[%clk 0:02:59.1]}
5... Nf6 {[%clk 0:02:52.5]} 6. dxc5 {[%clk 0:02:55.6]} 6... Qxc5 {[%clk
0:02:52]} 7. Na3 {[%clk 0:02:55.5]} 7... Qa5 {[%clk 0:02:40.4]} 8. Be2 {[%clk
0:02:32.8]} 8... e6 {[%clk 0:02:31.5]} 9. Nb5 {[%clk 0:02:18.7]} 9... Be7 {[%clk
0:02:10.3]} 10. O-O {[%clk 0:02:16.2]} 10... O-O {[%clk 0:02:07]} 11. Nbd4
{[%clk 0:02:12.2]} 11... Bd7 {[%clk 0:02:04.7]} 12. Bd3 {[%clk 0:01:37.1]} 12...
e5 {[%clk 0:01:59.2]} 13. Nb3 {[%clk 0:01:28.2]} 13... Qc7 {[%clk 0:01:58]} 14.
Re1 {[%clk 0:01:25.3]} 14... Bg4 {[%clk 0:01:51.8]} 15. h3 {[%clk 0:01:19.3]}
15... Bh5 {[%clk 0:01:48.4]} 16. Qe2 {[%clk 0:01:18]} 16... Bd6 {[%clk
0:01:41.8]} 17. Bg5 {[%clk 0:01:09.4]} 17... Nd7 {[%clk 0:01:19.6]} 18. Rad1
{[%clk 0:01:01.2]} 18... Nc5 {[%clk 0:00:44.7]} 19. Nxc5 {[%clk 0:00:47.1]}
19... Bxc5 {[%clk 0:00:44.5]} 20. Be3 {[%clk 0:00:38.3]} 20... Bxe3 {[%clk
0:00:40]} 21. Qxe3 {[%clk 0:00:39.2]} 21... Rfe8 {[%clk 0:00:31.9]} 22. Be4
{[%clk 0:00:35.8]} 22... f6 {[%clk 0:00:20.5]} 23. Rd2 {[%clk 0:00:35.1]} 23...
Rad8 {[%clk 0:00:19.3]} 24. Red1 {[%clk 0:00:35.1]} 24... Rxd2 {[%clk
0:00:18.2]} 25. Rxd2 {[%clk 0:00:36]} 25... Bf7 {[%clk 0:00:15.7]} 26. a3 {[%clk
0:00:24.4]} 26... g6 {[%clk 0:00:15.2]} 27. h4 {[%clk 0:00:20.5]} 27... Kg7
{[%clk 0:00:14.9]} 28. h5 {[%clk 0:00:20.6]} 28... a6 {[%clk 0:00:12.3]} 29. h6+
{[%clk 0:00:17.8]} 29... Kf8 {[%clk 0:00:11.7]} 30. Qc5+ {[%clk 0:00:17.3]}
30... Qe7 {[%clk 0:00:11.9]} 31. Qb6 {[%clk 0:00:16.8]} 31... Rc8 {[%clk
0:00:09.8]} 32. b4 {[%clk 0:00:12]} 32... Be8 {[%clk 0:00:08.4]} 33. c4 {[%clk
0:00:11.2]} 33... Qc7 {[%clk 0:00:08.6]} 34. Qe3 {[%clk 0:00:09.9]} 34... Rd8
{[%clk 0:00:05.3]} 35. c5 {[%clk 0:00:09.9]} 35... Rxd2 {[%clk 0:00:04.4]} 36.
Nxd2 {[%clk 0:00:09.2]} 36... Ne7 {[%clk 0:00:03.8]} 37. Nc4 {[%clk 0:00:08.7]}
37... Bc6 {[%clk 0:00:02.7]} 38. Qf3 {[%clk 0:00:05.4]} 1-0

[Event "Early-Titled-Tuesday-Blitz-November-28-2023"]
[Site "Chess.com"]
[Date "2023.11.28"]
[Round "4"]
[White "RoelandPruijssers"]
[Black "Olya_Oblachko"]
[Result "1-0"]
[WhiteElo "2698"]
[BlackElo "2262"]
[TimeControl "180+1"]
[EndTime "8:39:25 PST"]
[Termination "RoelandPruijssers won on time"]

1. e4 {[%clk 0:03:00.9]} 1... e6 {[%clk 0:02:59]} 2. d4 {[%clk 0:02:59.2]} 2...
d5 {[%clk 0:02:58.9]} 3. e5 {[%clk 0:02:59.7]} 3... c5 {[%clk 0:02:58.6]} 4. c3
{[%clk 0:02:58.9]} 4... Nc6 {[%clk 0:02:58.3]} 5. Nf3 {[%clk 0:02:58.2]} 5...
Bd7 {[%clk 0:02:58.5]} 6. Na3 {[%clk 0:02:54.7]} 6... Nge7 {[%clk 0:02:51.2]} 7.
Nc2 {[%clk 0:02:50.9]} 7... Ng6 {[%clk 0:02:46.4]} 8. Bd3 {[%clk 0:02:46.3]}
8... cxd4 {[%clk 0:02:42.3]} 9. cxd4 {[%clk 0:02:45.8]} 9... Be7 {[%clk
0:02:42.5]} 10. O-O {[%clk 0:02:44.4]} 10... O-O {[%clk 0:02:38.3]} 11. Re1
{[%clk 0:02:43.3]} 11... Rc8 {[%clk 0:02:06.3]} 12. g3 {[%clk 0:02:32.7]} 12...
Qe8 {[%clk 0:01:47.9]} 13. Ng5 {[%clk 0:02:22]} 13... h6 {[%clk 0:01:38.7]} 14.
Nh3 {[%clk 0:02:19.6]} 14... f6 {[%clk 0:01:19.7]} 15. Qg4 {[%clk 0:01:36.4]}
15... f5 {[%clk 0:01:15.2]} 16. Qe2 {[%clk 0:01:35.4]} 16... Nb4 {[%clk
0:01:01.9]} 17. Nxb4 {[%clk 0:01:33.6]} 17... Bxb4 {[%clk 0:01:01.8]} 18. Rd1
{[%clk 0:01:28.2]} 18... Ne7 {[%clk 0:00:53.8]} 19. Nf4 {[%clk 0:01:26.6]} 19...
Ba5 {[%clk 0:00:45.2]} 20. h4 {[%clk 0:01:22.8]} 20... Bb6 {[%clk 0:00:44.5]}
21. Be3 {[%clk 0:01:21.6]} 21... Nc6 {[%clk 0:00:44.1]} 22. Bc2 {[%clk
0:00:58.2]} 22... Nb4 {[%clk 0:00:42.2]} 23. Bb3 {[%clk 0:00:57.8]} 23... Bb5
{[%clk 0:00:36.7]} 24. Qd2 {[%clk 0:00:53.3]} 24... Nc6 {[%clk 0:00:18.2]} 25.
Qe1 {[%clk 0:00:42.5]} 25... Na5 {[%clk 0:00:18]} 26. h5 {[%clk 0:00:33.5]}
26... Nxb3 {[%clk 0:00:18]} 27. axb3 {[%clk 0:00:34.2]} 27... a6 {[%clk
0:00:14.4]} 28. Qd2 {[%clk 0:00:26.6]} 28... Qd7 {[%clk 0:00:11.7]} 29. Rdc1
{[%clk 0:00:24.5]} 29... Rc6 {[%clk 0:00:06.9]} 30. Ng6 {[%clk 0:00:20.7]} 30...
Rfc8 {[%clk 0:00:05.9]} 31. Rxc6 {[%clk 0:00:21.3]} 31... Rxc6 {[%clk
0:00:05.6]} 32. Bxh6 {[%clk 0:00:19.7]} 32... gxh6 {[%clk 0:00:04.9]} 33. Qxh6
{[%clk 0:00:20.4]} 33... Qg7 {[%clk 0:00:05.2]} 34. Qg5 {[%clk 0:00:21.1]} 34...
Rc8 {[%clk 0:00:04]} 35. h6 {[%clk 0:00:18.8]} 35... Qf7 {[%clk 0:00:02.1]} 36.
Ne7+ {[%clk 0:00:16.6]} 36... Kh7 {[%clk 0:00:02.1]} 37. Nxc8 {[%clk 0:00:16.2]}
37... Bxd4 {[%clk 0:00:02.4]} 38. Nd6 {[%clk 0:00:13.7]} 38... Qg6 {[%clk
0:00:02.1]} 39. Qxg6+ {[%clk 0:00:10.1]} 39... Kxg6 {[%clk 0:00:02.3]} 40. Nxb5
{[%clk 0:00:10.8]} 40... axb5 {[%clk 0:00:02.5]} 41. Ra5 {[%clk 0:00:10.9]} 1-0

[Event "Early-Titled-Tuesday-Blitz-November-28-2023"]
[Site "Chess.com"]
[Date "2023.11.28"]
[Round "4"]
[White "carloseduar100"]
[Black "Chess4always"]
[Result "0-1"]
[WhiteElo "2289"]
[BlackElo "2045"]
[TimeControl "180+1"]
[EndTime "8:39:25 PST"]
[Termination "Chess4always won by checkmate"]

1. e4 {[%clk 0:03:00.4]} 1... c6 {[%clk 0:02:59.3]} 2. Nf3 {[%clk 0:03:00]} 2...
d5 {[%clk 0:02:58.7]} 3. Nc3 {[%clk 0:03:00.9]} 3... dxe4 {[%clk 0:02:58.8]} 4.
Nxe4 {[%clk 0:03:01.2]} 4... Nf6 {[%clk 0:02:58.3]} 5. Nxf6+ {[%clk 0:03:01.5]}
5... gxf6 {[%clk 0:02:58]} 6. d4 {[%clk 0:03:02.4]} 6... Bg4 {[%clk 0:02:58]} 7.
c3 {[%clk 0:03:03.3]} 7... Nd7 {[%clk 0:02:57.4]} 8. g3 {[%clk 0:03:03.6]} 8...
e6 {[%clk 0:02:56.4]} 9. Bg2 {[%clk 0:03:03.9]} 9... Bd6 {[%clk 0:02:56.9]} 10.
Be3 {[%clk 0:03:03.7]} 10... Qc7 {[%clk 0:02:57.3]} 11. Qd2 {[%clk 0:03:03.8]}
11... Bxf3 {[%clk 0:02:56]} 12. Bxf3 {[%clk 0:03:03.7]} 12... h5 {[%clk
0:02:56.9]} 13. h4 {[%clk 0:03:02.6]} 13... f5 {[%clk 0:02:57.3]} 14. a4 {[%clk
0:02:59.2]} 14... a5 {[%clk 0:02:55.9]} 15. Qe2 {[%clk 0:02:42.1]} 15... Nf6
{[%clk 0:02:54.8]} 16. Bg5 {[%clk 0:02:40.6]} 16... Ng4 {[%clk 0:02:50.9]} 17.
O-O {[%clk 0:02:35.4]} 17... Be7 {[%clk 0:02:26.5]} 18. Bf4 {[%clk 0:02:29.7]}
18... Bd6 {[%clk 0:02:26]} 19. Bxd6 {[%clk 0:02:22.8]} 19... Qxd6 {[%clk
0:02:26.9]} 20. Rfd1 {[%clk 0:02:18.4]} 20... Rg8 {[%clk 0:02:21.1]} 21. b4
{[%clk 0:02:16.3]} 21... axb4 {[%clk 0:02:19.9]} 22. cxb4 {[%clk 0:02:17.2]}
22... f4 {[%clk 0:02:12]} 23. Kg2 {[%clk 0:01:45.7]} 23... fxg3 {[%clk
0:02:10.5]} 24. fxg3 {[%clk 0:01:46.6]} 24... Nf6 {[%clk 0:01:59.8]} 25. Qe5
{[%clk 0:01:43.2]} 25... Qxe5 {[%clk 0:01:57.8]} 26. dxe5 {[%clk 0:01:44.1]}
26... Nd5 {[%clk 0:01:58.3]} 27. b5 {[%clk 0:01:44]} 27... Ne3+ {[%clk
0:01:54.8]} 28. Kh3 {[%clk 0:01:39.2]} 28... Nxd1 {[%clk 0:01:54.8]} 29. Rxd1
{[%clk 0:01:35.9]} 29... cxb5 {[%clk 0:01:45.4]} 30. axb5 {[%clk 0:01:35.9]}
30... Ra3 {[%clk 0:01:43.8]} 31. Bxb7 {[%clk 0:01:21.5]} 31... Rgxg3+ {[%clk
0:01:42.5]} 32. Kh2 {[%clk 0:01:21.9]} 32... Rh3+ {[%clk 0:01:38.8]} 33. Kg2
{[%clk 0:01:22.2]} 33... Rxh4 {[%clk 0:01:34.3]} 34. Bc6+ {[%clk 0:01:21.4]}
34... Kf8 {[%clk 0:01:29.5]} 35. b6 {[%clk 0:01:18.8]} 35... Rb4 {[%clk
0:01:28.9]} 36. b7 {[%clk 0:01:14.6]} 36... Kg7 {[%clk 0:01:29.2]} 37. Kh2
{[%clk 0:01:01.7]} 37... Rb2+ {[%clk 0:01:27.4]} 38. Bg2 {[%clk 0:00:54.2]}
38... Raa2 {[%clk 0:01:23.7]} 39. Kh3 {[%clk 0:00:54.5]} 39... Ra3+ {[%clk
0:01:13.5]} 40. Kh2 {[%clk 0:00:49.1]} 40... Kh6 {[%clk 0:01:07.3]} 41. Rd8
{[%clk 0:00:48.6]} 41... Raa2 {[%clk 0:01:03.5]} 42. Kh3 {[%clk 0:00:48.1]}
42... Ra3+ {[%clk 0:01:01.1]} 43. Kh2 {[%clk 0:00:48.1]} 43... Rab3 {[%clk
0:01:01.4]} 44. Rg8 {[%clk 0:00:43.3]} 44... Kh7 {[%clk 0:00:58.7]} 45. Rg5
{[%clk 0:00:41.1]} 45... Kh6 {[%clk 0:00:56.8]} 46. Rg8 {[%clk 0:00:41.2]} 46...
Rxb7 {[%clk 0:00:56.9]} 47. Rh8+ {[%clk 0:00:33.6]} 47... Kg5 {[%clk 0:00:54.2]}
48. Kh3 {[%clk 0:00:33]} 48... R7b3+ {[%clk 0:00:52.9]} 49. Kh2 {[%clk 0:00:33]}
49... Re3 {[%clk 0:00:51.5]} 50. Rf8 {[%clk 0:00:30.1]} 50... Ree2 {[%clk
0:00:49]} 51. Rg8+ {[%clk 0:00:22.8]} 51... Kf4 {[%clk 0:00:46.7]} 52. Kh3
{[%clk 0:00:23.1]} 52... Rxg2 {[%clk 0:00:46.2]} 53. Rxg2 {[%clk 0:00:24]} 53...
Rxg2 {[%clk 0:00:46.2]} 54. Kxg2 {[%clk 0:00:24.9]} 54... Kxe5 {[%clk
0:00:46.9]} 55. Kh3 {[%clk 0:00:25.2]} 55... Kf4 {[%clk 0:00:47.2]} 56. Kh4
{[%clk 0:00:26.1]} 56... e5 {[%clk 0:00:47.7]} 57. Kxh5 {[%clk 0:00:26.7]} 57...
e4 {[%clk 0:00:48.6]} 58. Kh4 {[%clk 0:00:27.5]} 58... Kf3 {[%clk 0:00:49.1]}
59. Kh3 {[%clk 0:00:28]} 59... e3 {[%clk 0:00:50]} 60. Kh4 {[%clk 0:00:28.1]}
60... e2 {[%clk 0:00:50.1]} 61. Kg5 {[%clk 0:00:29]} 61... e1=Q {[%clk
0:00:50.3]} 62. Kf6 {[%clk 0:00:29.9]} 62... Qe6+ {[%clk 0:00:50.6]} 63. Kg7
{[%clk 0:00:30.1]} 63... f5 {[%clk 0:00:50.2]} 64. Kh7 {[%clk 0:00:30.1]} 64...
Qf6 {[%clk 0:00:49.2]} 65. Kg8 {[%clk 0:00:30.5]} 65... Qe7 {[%clk 0:00:49.5]}
66. Kh8 {[%clk 0:00:30.6]} 66... Kg4 {[%clk 0:00:50.4]} 67. Kg8 {[%clk
0:00:31.3]} 67... Kg5 {[%clk 0:00:51.3]} 68. Kh8 {[%clk 0:00:32.2]} 68... Kg6
{[%clk 0:00:51.9]} 69. Kg8 {[%clk 0:00:32.9]} 69... Qg7# {[%clk 0:00:52.3]} 0-1

[Event "Early-Titled-Tuesday-Blitz-November-28-2023"]
[Site "Chess.com"]
[Date "2023.11.28"]
[Round "4"]
[White "SlavenPastar"]
[Black "ozen_metehan"]
[Result "0-1"]
[WhiteElo "2642"]
[BlackElo "2443"]
[TimeControl "180+1"]
[EndTime "8:39:26 PST"]
[Termination "ozen_metehan won by resignation"]

1. Nf3 {[%clk 0:03:00.9]} 1... Nf6 {[%clk 0:02:59.8]} 2. g3 {[%clk 0:03:01.3]}
2... b5 {[%clk 0:02:58.5]} 3. Bg2 {[%clk 0:02:59.1]} 3... Bb7 {[%clk 0:02:55.3]}
4. Na3 {[%clk 0:02:59.7]} 4... a6 {[%clk 0:02:53.3]} 5. c4 {[%clk 0:02:59.7]}
5... b4 {[%clk 0:02:48.2]} 6. Nc2 {[%clk 0:02:59.6]} 6... e6 {[%clk 0:02:45.1]}
7. d4 {[%clk 0:02:53.9]} 7... c5 {[%clk 0:02:43.2]} 8. b3 {[%clk 0:02:51.7]}
8... Be7 {[%clk 0:02:38.4]} 9. Bb2 {[%clk 0:02:51.9]} 9... O-O {[%clk
0:02:36.6]} 10. d5 {[%clk 0:02:48.7]} 10... exd5 {[%clk 0:02:35.6]} 11. Nh4
{[%clk 0:02:48]} 11... Re8 {[%clk 0:02:32.7]} 12. O-O {[%clk 0:02:40]} 12... Ne4
{[%clk 0:02:25.4]} 13. Nf5 {[%clk 0:02:34.7]} 13... Bf6 {[%clk 0:02:24.9]} 14.
Qc1 {[%clk 0:01:57.4]} 14... Nc3 {[%clk 0:02:18.7]} 15. Bxc3 {[%clk 0:01:49.9]}
15... Bxc3 {[%clk 0:02:17.2]} 16. Nd6 {[%clk 0:01:41.1]} 16... Bc6 {[%clk
0:02:11.9]} 17. cxd5 {[%clk 0:01:31.8]} 17... Bb5 {[%clk 0:02:09.1]} 18. Nxe8
{[%clk 0:01:11.7]} 18... Qxe8 {[%clk 0:02:07.7]} 19. Bf3 {[%clk 0:01:09.1]}
19... d6 {[%clk 0:02:01.8]} 20. Qe3 {[%clk 0:01:02.4]} 20... Qxe3 {[%clk
0:01:58.7]} 21. Nxe3 {[%clk 0:01:03.3]} 21... Bxa1 {[%clk 0:01:58.4]} 22. Rxa1
{[%clk 0:01:04]} 22... g6 {[%clk 0:01:53.4]} 23. a3 {[%clk 0:01:01.6]} 23... Nd7
{[%clk 0:01:49.4]} 24. axb4 {[%clk 0:00:58.1]} 24... cxb4 {[%clk 0:01:48.1]} 25.
Nc2 {[%clk 0:00:58.6]} 25... Nc5 {[%clk 0:01:45.9]} 26. Nd4 {[%clk 0:00:55.1]}
26... Bd7 {[%clk 0:01:44.5]} 27. Ra5 {[%clk 0:00:42.7]} 27... Kg7 {[%clk
0:01:27.3]} 28. e3 {[%clk 0:00:40.9]} 28... Nb7 {[%clk 0:01:21.6]} 29. Ra2
{[%clk 0:00:34.8]} 29... Nc5 {[%clk 0:01:20.4]} 30. Ra5 {[%clk 0:00:21.8]} 30...
Nb7 {[%clk 0:01:19.3]} 31. Ra2 {[%clk 0:00:21.6]} 31... Nc5 {[%clk 0:00:49.3]}
32. Kf1 {[%clk 0:00:18.9]} 32... a5 {[%clk 0:00:49.3]} 33. Bd1 {[%clk
0:00:17.2]} 33... Ne4 {[%clk 0:00:41.4]} 34. Be2 {[%clk 0:00:14.8]} 34... Nc3
{[%clk 0:00:39.9]} 35. Ra1 {[%clk 0:00:15.4]} 35... Nxd5 {[%clk 0:00:38.5]} 36.
Bf3 {[%clk 0:00:13.9]} 36... Be6 {[%clk 0:00:35.2]} 37. e4 {[%clk 0:00:13.5]}
37... Nc3 {[%clk 0:00:31.8]} 38. e5 {[%clk 0:00:13.9]} 38... Ra6 {[%clk
0:00:24.7]} 39. exd6 {[%clk 0:00:11.3]} 39... Rxd6 {[%clk 0:00:24.6]} 40. Nc6
{[%clk 0:00:10]} 40... a4 {[%clk 0:00:18.7]} 41. bxa4 {[%clk 0:00:09.7]} 41...
b3 {[%clk 0:00:19.1]} 42. Ra3 {[%clk 0:00:02.7]} 42... b2 {[%clk 0:00:18]} 43.
Rb3 {[%clk 0:00:02.7]} 43... Bxb3 {[%clk 0:00:17.5]} 0-1